bitfinex/quotes_SOLUSD_20250429
["timestamp","ask_amount","ask_price","bid_price","bid_amount"]
[1745903462729,30.16996037,146.18,146.15,0.9921559]
[1745903462913,35.17855746,146.18,146.15,0.9921559]
[1745903463306,41.33535045,146.18,146.15,0.9921559]
[1745903464204,22.68570159,146.18,146.15,0.9921559]
[1745903464686,36.30570159,146.18,146.15,0.9921559]
[1745903465202,17.6771045,146.18,146.15,0.9921559]
[1745903465404,31.2971045,146.18,146.15,0.9921559]
[1745903465898,17.6771045,146.18,146.15,0.9921559]
[1745903466114,31.2971045,146.18,146.15,0.9921559]
[1745903466509,19.77679299,146.18,146.15,0.9921559]
[1745903466821,31.2971045,146.18,146.15,0.9921559]
[1745903468103,19.77679299,146.18,146.15,12.51246741]
[1745903469011,31.2971045,146.18,146.15,12.51246741]
[1745903470617,6.15679299,146.18,146.15,12.51246741]
[1745903470815,13.7,146.18,146.15,0.9921559]
[1745903471023,19.85679299,146.18,146.15,12.51246741]
[1745903473095,31.3771045,146.18,146.15,12.51246741]
[1745903473421,31.3771045,146.18,146.15,0.9921559]
[1745903475216,50.02675336,146.18,146.15,0.9921559]
[1745903475416,31.3771045,146.18,146.15,0.9921559]
[1745903475808,13.7,146.18,146.17,11.55031151]
[1745903476032,19.80314393,146.19,146.17,11.55031151]
[1745903476331,19.80314393,146.19,146.18,11.52031151]
[1745903480231,19.80314393,146.19,146.13,7.52691018]
[1745903480407,11.52031151,146.14,146.11,0.03]
[1745903480609,1.36816137,146.13,146.11,0.03]
[1745903480912,1.36816137,146.13,146.12,0.03]
[1745903481323,12.88847288,146.13,146.12,0.03]
[1745903482143,12.88847288,146.13,146.12,1.042023]
[1745903482308,37.69702134,146.13,146.12,1.042023]
[1745903483239,51.39702134,146.13,146.11,0.03]
[1745903483441,11.52031151,146.12,146.11,0.03]
[1745903483747,30.16996037,146.12,146.11,1e-08]
[1745903483947,18.64964886,146.11,146.06,0.03]
[1745903484151,11.52031151,146.07,146.06,0.03]
[1745903484437,19.04990233,146.07,146.06,0.03]
[1745903486047,12.88847288,146.07,146.06,0.03]
[1745903487646,19.86295611,146.07,146.06,0.03]
[1745903493563,1.36816137,146.07,146.06,0.03]
[1745903493779,18.49479474,146.09,146.06,0.03]
[1745903494272,18.49479474,146.08,146.06,0.03]
[1745903494842,1.36816137,146.11,146.06,0.03]
[1745903494843,18.49479474,146.09,146.06,0.03]
[1745903496038,18.49479474,146.07,146.06,0.03]
[1745903505052,24.65622419,146.07,146.06,0.03]
[1745903505254,29.60392876,146.07,146.06,0.03]
[1745903505562,48.25357762,146.07,146.06,0.03]
[1745903505862,54.78727762,146.07,146.06,0.03]
[1745903506065,18.64964886,146.06,146.03,0.03]
[1745903506276,37.1444436,146.04,146.03,0.03]
[1745903506666,18.49479474,146.04,146.03,0.03]
[1745903506981,24.65748989,146.04,146.03,0.03]
[1745903508286,43.30713875,146.04,146.03,0.03]
[1745903508461,18.64964886,146.03,146.0,0.53]
[1745903508789,18.49479474,146.01,146.0,0.53]
[1745903510173,84.26816137,146.02,146.0,0.53]
[1745903510370,18.49479474,146.01,146.0,0.53]
[1745903511780,102.76295611,146.02,146.0,0.53]
[1745903513455,95.83422186,146.02,146.0,0.53]
[1745903514089,1.36816137,146.02,146.0,0.53]
[1745903514263,12.93422186,146.04,146.0,12.09606049]
[1745903514582,95.83422186,146.05,146.0,0.53]
[1745903514762,95.83422186,146.05,146.01,11.56606049]
[1745903518287,11.56606049,146.04,146.01,11.56606049]
[1745903519688,11.56606049,146.04,146.0,12.09606049]
[1745903519872,12.93422186,146.03,146.0,0.53]
[1745903520573,12.93422186,146.03,146.0,12.09606049]
[1745903521091,12.93422186,146.03,146.0,0.53]
[1745903521261,11.56606049,146.02,146.0,0.53]
[1745903522163,12.93422186,146.01,146.0,0.53]
[1745903524569,39.34573209,146.01,146.0,0.53]
[1745903525467,44.30686402,146.01,146.0,0.53]
[1745903525871,38.14290265,146.01,146.0,0.53]
[1745903527873,44.30686402,146.01,146.0,0.53]
[1745903528780,32.74080353,146.01,146.0,0.53]
[1745903528994,38.14290265,146.01,146.0,0.53]
[1745903529580,19.49325379,146.01,146.0,0.53]
[1745903531187,25.65721516,146.01,146.0,0.53]
[1745903532494,44.30686402,146.01,146.0,0.53]
[1745903535499,44.30686402,146.01,146.0,1e-08]
[1745903539596,38.14290265,146.01,146.0,1e-08]
[1745903539796,6.3292933,146.01,146.0,1e-08]
[1745903540004,4.96113193,146.01,146.0,11.5660605]
[1745903541089,1.36816137,146.03,146.0,11.5660605]
[1745903541321,12.93422186,146.03,146.0,1e-08]
[1745903542108,11.56606049,146.02,146.0,1e-08]
[1745903542303,1.36816137,146.01,146.0,1e-08]
[1745903543203,1.36816137,146.02,146.0,1e-08]
[1745903543501,7.53173497,146.02,146.0,1e-08]
[1745903543707,18.50643769,146.01,146.0,1e-08]
[1745903544086,4.95270082,146.01,146.0,1e-08]
[1745903544992,87.85270082,146.01,146.0,1e-08]
[1745903545407,106.35913851,146.01,146.0,1e-08]
[1745903545605,112.52309988,146.01,146.0,1e-08]
[1745903547223,113.89126125,146.01,146.0,1e-08]
[1745903548484,49.64091011,146.01,146.0,1e-08]
[1745903548684,20.0,145.83,145.67,10.65177309]
[1745903548900,18.50643769,145.81,145.79,0.15008667]
[1745903549180,18.64964886,145.79,145.67,10.65177309]
[1745903549384,33.72893537,145.77,145.67,29.15821078]
[1745903549588,1.36816137,145.76,145.72,18.50643769]
[1745903549783,28.9354742,145.76,145.67,29.15821078]
[1745903549982,28.9354742,145.76,145.7,18.00643769]
[1745903550191,10.42903651,145.76,145.69,18.50643769]
[1745903550391,18.50643769,145.75,145.69,18.50643769]
[1745903550596,0.86816137,145.74,145.69,18.50643769]
[1745903551004,19.37459906,145.74,145.69,18.50643769]
[1745903551202,4.92344482,145.73,145.67,10.65177309]
[1745903551412,0.86816137,145.72,145.7,18.50643769]
[1745903552411,0.86816137,145.74,145.7,18.50643769]
[1745903552716,0.86816137,145.74,145.71,18.50643769]
[1745903553413,0.86816137,145.75,145.71,18.50643769]
[1745903553886,0.86816137,145.75,145.74,18.50643769]
[1745903554315,0.86816137,145.77,145.74,18.50643769]
[1745903554607,0.86816137,145.77,145.75,18.50643769]
[1745903555021,0.86816137,145.77,145.76,18.50643769]
[1745903555223,0.86816137,145.78,145.76,18.50643769]
[1745903555390,0.86816137,145.78,145.77,18.50643769]
[1745903555803,98.84145574,145.81,145.77,18.50643769]
[1745903556408,18.50643769,145.8,145.76,18.50643769]
[1745903557111,18.50643769,145.8,145.72,20.07612023]
[1745903557405,18.50643769,145.8,145.76,18.50643769]
[1745903557805,18.50643769,145.8,145.72,20.07612023]
[1745903557984,51.05608655,145.82,145.78,18.50643769]
[1745903558408,4.87230811,145.81,145.78,18.50643769]
[1745903558717,85.20732616,145.81,145.78,18.50643769]
[1745903559013,4.87230811,145.81,145.78,18.50643769]
[1745903559418,1.44021528,145.81,145.8,18.50643769]
[1745903559721,18.50643769,145.87,145.8,18.50643769]
[1745903560017,37.15608655,145.88,145.84,18.50643769]
[1745903560322,18.50643769,145.87,145.83,18.50643769]
[1745903560820,13.9,145.89,145.84,18.50643769]
[1745903560988,18.50643769,145.87,145.84,18.50643769]
[1745903564197,18.50643769,145.87,145.83,18.50643769]
[1745903564514,18.50643769,145.84,145.8,18.50643769]
[1745903565408,37.15608655,145.87,145.83,18.50643769]
[1745903565624,18.50643769,145.86,145.82,18.50643769]
[1745903565916,15.07599366,145.85,145.81,18.50643769]
[1745903566823,18.50643769,145.86,145.81,18.50643769]
[1745903566990,18.50643769,145.86,145.82,18.50643769]
[1745903568117,37.15608655,145.87,145.83,18.50643769]
[1745903568413,80.33501805,145.86,145.83,18.50643769]
[1745903568714,98.84145574,145.86,145.82,18.50643769]
[1745903568900,80.33501805,145.86,145.82,18.50643769]
[1745903569311,76.90399541,145.86,145.82,18.50643769]
[1745903569615,76.90399541,145.86,145.84,18.50643769]
[1745903570014,109.3104331,145.89,145.85,18.50643769]
[1745903570328,90.80399541,145.89,145.86,18.50643769]
[1745903570488,76.90399541,145.88,145.86,18.50643769]
[1745903570828,76.90399541,145.88,145.85,18.50643769]
[1745903571113,76.90399541,145.88,145.84,18.50643769]
[1745903571509,95.4104331,145.88,145.84,18.50643769]
[1745903571911,37.15608655,145.87,145.78,1.5125]
[1745903572114,37.15608655,145.87,145.8,18.50643769]
[1745903572115,18.50643769,145.84,145.8,18.50643769]
[1745903572923,18.50643769,145.84,145.78,1.5125]
[1745903572924,18.50643769,145.84,145.81,18.50643769]
[1745903573121,18.50643769,145.85,145.81,18.50643769]
[1745903573420,18.50643769,145.84,145.78,1.5125]
[1745903573726,18.50643769,145.84,145.8,18.50643769]
[1745903573924,18.50643769,145.85,145.81,18.50643769]
[1745903574114,18.50643769,145.84,145.8,18.50643769]
[1745903574417,76.90399541,145.86,145.83,18.50643769]
[1745903574606,76.90399541,145.85,145.83,18.50643769]
[1745903575006,76.90399541,145.85,145.84,18.50643769]
[1745903575808,73.47273726,145.85,145.84,18.50643769]
[1745903576010,13.9,145.89,145.84,18.50643769]
[1745903576217,73.47273726,145.88,145.87,18.50643769]
[1745903576513,73.47273726,145.88,145.82,20.41199008]
[1745903576706,73.47273726,145.88,145.82,14.24]
[1745903576914,91.97917495,145.88,145.82,14.24]
[1745903577117,91.97917495,145.88,145.84,18.50643769]
[1745903578120,73.47273726,145.88,145.85,18.50643769]
[1745903579313,70.04218552,145.88,145.85,18.50643769]
[1745903580829,4.89194732,145.87,145.85,18.50643769]
[1745903581121,4.89194732,145.87,145.84,18.50643769]
[1745903581323,4.89194732,145.87,145.83,18.50643769]
[1745903581717,4.89194732,145.87,145.85,18.50643769]
[1745903582630,4.89194732,145.87,145.84,18.50643769]
[1745903584437,4.89194732,145.87,145.85,18.50643769]
[1745903585837,1.46173871,145.87,145.86,18.50643769]
[1745903586130,70.04218552,145.88,145.86,18.50643769]
[1745903587730,70.04218552,145.88,145.85,18.50643769]
[1745903587926,70.04218552,145.88,145.86,18.50643769]
[1745903589333,66.61197691,145.88,145.86,18.50643769]
[1745903591213,66.61197691,145.88,145.82,6.17189953]
[1745903591436,66.61197691,145.88,145.86,18.50643769]
[1745903593712,66.61197691,145.88,145.87,18.50643769]
[1745903594246,71.54996126,145.88,145.87,18.50643769]
[1745903594652,71.54996126,145.88,145.83,6.17150191]
[1745903594819,71.54996126,145.88,145.87,18.50643769]
[1745903595226,66.61197691,145.88,145.87,18.50643769]
[1745903595915,63.18142517,145.88,145.87,18.50643769]
[1745903598255,68.13374995,145.88,145.87,18.50643769]
[1745903598951,4.95257685,145.88,145.87,18.50643769]
[1745903599328,1.52260362,145.88,145.87,18.50643769]
[1745903600222,4.89689119,145.88,145.87,18.50643769]
[1745903600439,1.52260362,145.88,145.87,18.50643769]
[1745903600621,1.52260362,145.88,145.85,18.50643769]
[1745903600823,4.95671792,145.87,145.81,40.29069352]
[1745903601051,4.95671792,145.87,145.86,18.50643769]
[1745903601933,3.4072108,145.88,145.86,18.50643769]
[1745903602133,81.68786286,145.89,145.84,18.50643769]
[1745903602429,81.68786286,145.89,145.85,18.50643769]
[1745903603056,4.95671792,145.88,145.85,18.50643769]
[1745903603431,23.46315561,145.88,145.84,18.50643769]
[1745903603955,26.83665426,145.88,145.84,18.50643769]
[1745903604127,4.95671792,145.87,145.84,18.50643769]
[1745903605447,4.95671792,145.86,145.84,18.50643769]
[1745903605741,4.95671792,145.86,145.83,18.50643769]
[1745903606528,18.50643769,145.87,145.83,18.50643769]
[1745903606529,4.95671792,145.85,145.83,18.50643769]
[1745903606935,4.95671792,145.85,145.81,0.03]
[1745903607147,18.50643769,145.84,145.81,0.03]
[1745903607656,4.95671792,145.83,145.81,0.03]
[1745903607844,4.95671792,145.83,145.82,18.50643769]
[1745903608875,4.95671792,145.85,145.82,18.50643769]
[1745903609051,4.95671792,145.85,145.84,18.50643769]
[1745903609428,1.52569528,145.85,145.84,18.50643769]
[1745903612032,63.18142517,145.87,145.84,18.50643769]
[1745903612231,4.96627611,145.86,145.84,18.50643769]
[1745903612667,4.96627611,145.86,145.81,18.53643769]
[1745903612962,4.96627611,145.86,145.83,18.50643769]
[1745903613272,4.96627611,145.85,145.83,18.50643769]
[1745903613757,4.96627611,145.85,145.84,18.50643769]
[1745903614150,4.96627611,145.85,145.83,18.50643769]
[1745903615247,4.96627611,145.85,145.82,18.50643769]
[1745903615448,4.96627611,145.84,145.82,18.50643769]
[1745903615863,1.5360675,145.84,145.82,18.50643769]
[1745903616165,18.50643769,145.86,145.82,18.50643769]
[1745903616462,81.68786286,145.86,145.82,18.50643769]
[1745903616681,18.50643769,145.84,145.81,0.03]
[1745903616833,18.50643769,145.82,145.81,0.03]
[1745903618946,1.6455,145.84,145.81,0.03]
[1745903619265,18.50643769,145.84,145.81,0.03]
[1745903620166,18.50643769,145.83,145.81,0.03]
[1745903620977,18.64964886,145.85,145.81,0.03]
[1745903621147,18.50643769,145.83,145.81,0.03]
[1745903622673,20.255,145.87,145.82,18.50643769]
[1745903622973,38.76143769,145.87,145.83,18.50643769]
[1745903623169,38.76143769,145.87,145.81,0.03]
[1745903623170,18.50643769,145.86,145.82,18.50643769]
[1745903623667,38.76143769,145.87,145.83,18.50643769]
[1745903624147,14.02,145.87,145.83,18.50643769]
[1745903624349,14.02,145.87,145.84,18.50643769]
[1745903625162,32.52643769,145.87,145.83,18.50643769]
[1745903625862,29.09552274,145.87,145.82,18.50643769]
[1745903626165,10.58908505,145.87,145.82,18.50643769]
[1745903626351,29.09552274,145.87,145.82,18.50643769]
[1745903628574,4.96029522,145.86,145.82,18.50643769]
[1745903629048,4.96029522,145.86,145.81,18.53643769]
[1745903629049,82.9,145.85,145.81,18.53643769]
[1745903629253,82.9,145.85,145.84,18.50643769]
[1745903629454,79.46908505,145.85,145.84,18.50643769]
[1745903629675,79.46908505,145.85,145.83,18.50643769]
[1745903629873,4.96029522,145.84,145.83,18.50643769]
[1745903630077,4.96029522,145.84,145.78,26.39286511]
[1745903630371,4.96029522,145.84,145.83,18.50643769]
[1745903630776,4.96029522,145.87,145.83,18.50643769]
[1745903631079,4.96029522,145.87,145.85,18.50643769]
[1745903631869,4.96029522,145.86,145.85,18.50643769]
[1745903635963,1.52985119,145.86,145.85,18.50643769]
[1745903636769,79.46908505,145.88,145.85,18.50643769]
[1745903636971,79.46908505,145.88,145.86,18.50643769]
[1745903637869,79.46908505,145.88,145.87,18.50643769]
[1745903638075,82.87127278,145.88,145.87,18.50643769]
[1745903638366,82.87127278,145.88,145.86,18.50643769]
[1745903639273,79.46908505,145.88,145.86,18.50643769]
[1745903639485,76.03911182,145.88,145.86,18.50643769]
[1745903641375,76.03911182,145.88,145.85,18.50643769]
[1745903641584,76.03911182,145.88,145.85,11.58894671]
[1745903642206,76.03911182,145.88,145.86,0.584691]
[1745903642502,76.03911182,145.88,145.86,12.17363771]
[1745903642703,76.03911182,145.88,145.87,11.58894671]
[1745903642891,79.5256796,145.88,145.87,11.58894671]
[1745903643208,79.5256796,145.88,145.86,12.17363771]
[1745903644073,79.5256796,145.88,145.86,0.584691]
[1745903646091,72.60890321,145.88,145.86,0.584691]
[1745903646863,84.19784992,145.88,145.86,0.584691]
[1745903647071,11.58894671,145.87,145.86,0.584691]
[1745903647865,44.13859557,145.87,145.86,0.584691]
[1745903648177,44.13859557,145.87,145.86,1e-08]
[1745903648581,49.10271701,145.87,145.86,1e-08]
[1745903649194,55.27259429,145.87,145.86,1e-08]
[1745903649500,51.84097271,145.87,145.86,1e-08]
[1745903652275,18.64964886,145.83,145.8,0.03]
[1745903652617,11.58894671,145.81,145.8,0.03]
[1745903654081,16.55306815,145.81,145.8,0.03]
[1745903658179,4.96412144,145.81,145.8,0.03]
[1745903658381,4.96412144,145.81,145.8,11.61894671]
[1745903659299,1.53192096,145.81,145.8,11.61894671]
[1745903660574,1.53192096,145.81,145.8,0.03]
[1745903664105,1.53192096,145.81,145.8,11.61894671]
[1745903665984,11.58894671,145.85,145.81,11.58894671]
[1745903667105,32.40964886,145.86,145.81,11.58894671]
[1745903667305,94.48894671,145.85,145.81,11.58894671]
[1745903668005,11.58894671,145.84,145.8,11.61894671]
[1745903669304,8.15721746,145.84,145.8,11.61894671]
[1745903670104,82.9,145.85,145.8,11.61894671]
[1745903670312,11.58894671,145.84,145.8,11.61894671]
[1745903671113,82.9,145.83,145.8,11.61894671]
[1745903671318,82.9,145.83,145.81,11.58894671]
[1745903671611,82.9,145.83,145.8,11.61894671]
[1745903672912,82.9,145.83,145.8,0.03]
[1745903673114,94.48894671,145.83,145.8,0.03]
[1745903674097,82.9,145.83,145.8,11.61894671]
[1745903677411,82.9,145.83,145.8,0.03]
[1745903677617,82.9,145.83,145.8,11.61894671]
[1745903685627,82.9,145.83,145.82,11.58894671]
[1745903687627,96.66,145.86,145.82,11.58894671]
[1745903687833,96.66,145.86,145.8,0.03]
[1745903687834,96.66,145.86,145.85,11.58894671]
[1745903688024,82.9,145.86,145.85,11.58894671]
[1745903692035,82.9,145.86,145.81,11.58894671]
[1745903692219,82.9,145.86,145.84,11.58894671]
[1745903692406,82.9,145.86,145.85,11.58894671]
[1745903692615,86.35197645,145.88,145.85,11.58894671]
[1745903693440,86.35197645,145.88,145.86,11.58894671]
[1745903693624,86.35197645,145.88,145.87,11.58894671]
[1745903695227,86.35197645,145.88,145.86,11.58894671]
[1745903695528,86.35197645,145.88,145.85,11.58894671]
[1745903695835,82.9,145.88,145.85,11.58894671]
[1745903696131,82.9,145.88,145.86,11.58894671]
[1745903697131,82.9,145.88,145.87,11.58894671]
[1745903697529,3.44142262,145.89,145.87,11.58894671]
[1745903697726,96.643,145.9,145.87,11.58894671]
[1745903700634,108.23194671,145.9,145.86,11.58894671]
[1745903700830,11.58894671,145.89,145.85,11.58894671]
[1745903701145,11.58894671,145.88,145.85,11.58894671]
[1745903701527,11.58894671,145.89,145.85,11.58894671]
[1745903703334,94.48894671,145.89,145.85,11.58894671]
[1745903703639,94.48894671,145.89,145.86,11.58894671]
[1745903705946,11.58894671,145.88,145.81,11.58894671]
[1745903706134,94.48894671,145.89,145.85,11.58894671]
[1745903707143,94.48894671,145.89,145.81,11.58894671]
[1745903707350,94.48894671,145.89,145.85,11.58894671]
[1745903709140,94.48894671,145.89,145.86,11.58894671]
[1745903709937,94.48894671,145.89,145.81,11.58894671]
[1745903710446,11.58894671,145.88,145.81,11.58894671]
[1745903710625,11.58894671,145.88,145.84,11.58894671]
[1745903710823,94.48894671,145.88,145.84,11.58894671]
[1745903712151,94.48894671,145.88,145.85,11.58894671]
[1745903712655,82.9,145.88,145.85,11.58894671]
[1745903713151,82.9,145.88,145.81,11.58894671]
[1745903713455,82.9,145.88,145.86,11.58894671]
[1745903714651,82.9,145.88,145.87,11.58894671]
[1745903716259,0.063,145.9,145.87,11.58894671]
[1745903716562,0.063,145.9,145.89,11.58894671]
[1745903719329,0.063,145.9,145.88,11.58894671]
[1745903723976,0.063,145.9,145.82,80.9]
[1745903724131,11.58894671,145.88,145.8,82.5191]
[1745903724333,11.58894671,145.86,145.82,11.58894671]
[1745903724764,82.9,145.88,145.81,11.58894671]
[1745903724765,11.58894671,145.85,145.81,11.58894671]
[1745903727355,11.58894671,145.86,145.8,1.6191]
[1745903727551,11.58894671,145.85,145.8,11.61894671]
[1745903727757,11.58894671,145.85,145.81,11.58894671]
[1745903733777,94.48894671,145.86,145.82,11.58894671]
[1745903734380,11.58894671,145.85,145.81,11.58894671]
[1745903736562,11.58894671,145.82,145.8,0.03]
[1745903739043,11.58894671,145.83,145.8,0.03]
[1745903739463,11.58894671,145.84,145.8,11.61894671]
[1745903739843,11.58894671,145.83,145.8,0.03]
[1745903740741,11.58894671,145.84,145.8,11.61894671]
[1745903741465,94.48894671,145.84,145.8,11.61894671]
[1745903741835,94.48894671,145.84,145.8,0.03]
[1745903742038,94.48894671,145.84,145.8,11.61894671]
[1745903744347,82.9,145.84,145.81,11.58894671]
[1745903749370,11.58894671,145.82,145.8,0.03]
[1745903750165,11.58894671,145.83,145.8,0.03]
[1745903753365,94.48894671,145.83,145.8,0.03]
[1745903753877,82.9,145.83,145.81,11.58894671]
[1745903754061,82.9,145.83,145.82,11.58894671]
[1745903754268,82.9,145.83,145.81,11.58894671]
[1745903754572,82.9,145.83,145.82,11.58894671]
[1745903756577,30.23859557,145.86,145.8,0.03]
[1745903756766,94.48894671,145.85,145.81,11.58894671]
[1745903756968,82.9,145.85,145.82,11.58894671]
[1745903757175,82.9,145.85,145.83,11.58894671]
[1745903758282,82.9,145.85,145.8,0.03]
[1745903758283,82.9,145.85,145.82,11.58894671]
[1745903762382,94.48894671,145.85,145.8,0.03]
[1745903762683,82.9,145.85,145.82,11.58894671]
[1745903763982,82.9,145.85,145.81,11.58894671]
[1745903764183,94.48894671,145.85,145.8,0.03]
[1745903764364,94.48894671,145.85,145.81,11.58894671]
[1745903765984,11.58894671,145.84,145.8,0.03]
[1745903766167,11.58894671,145.83,145.8,0.03]
[1745903766569,11.58894671,145.84,145.8,11.61894671]
[1745903766979,82.9,145.85,145.8,11.61894671]
[1745903767190,94.48894671,145.85,145.81,11.58894671]
[1745903767870,82.9,145.84,145.81,11.58894671]
[1745903768072,94.48894671,145.84,145.8,11.61894671]
[1745903769968,82.9,145.84,145.8,11.61894671]
[1745903770568,94.48894671,145.84,145.81,11.58894671]
[1745903770896,82.9,145.84,145.81,11.58894671]
[1745903773695,82.9,145.84,145.82,11.58894671]
[1745903773904,82.9,145.84,145.81,11.58894671]
[1745903775185,82.9,145.84,145.8,0.03]
[1745903775392,82.9,145.84,145.81,11.58894671]
[1745903779505,82.9,145.84,145.8,0.03]
[1745903779803,82.9,145.84,145.81,11.58894671]
[1745903781493,82.9,145.84,145.82,11.58894671]
[1745903783499,94.48894671,145.84,145.8,0.03]
[1745903783710,11.58894671,145.83,145.8,0.03]
[1745903783883,82.9,145.84,145.8,0.03]
[1745903783884,94.48894671,145.84,145.8,0.03]
[1745903784294,94.48894671,145.84,145.8,11.61894671]
[1745903784606,82.9,145.84,145.82,11.58894671]
[1745903784979,82.9,145.84,145.81,11.58894671]
[1745903786026,11.58894671,145.83,145.8,0.03]
[1745903786202,11.58894671,145.82,145.8,0.03]
[1745903786521,11.58894671,145.81,145.8,0.03]
[1745903787410,30.23859557,145.82,145.8,0.03]
[1745903789218,18.64964886,145.82,145.8,0.03]
[1745903789417,30.23859557,145.82,145.8,0.03]
[1745903790109,11.58894671,145.82,145.8,0.03]
[1745903791014,82.9,145.83,145.8,0.03]
[1745903791215,11.58894671,145.82,145.8,0.03]
[1745903791513,82.9,145.81,145.8,0.03]
[1745903802031,94.48894671,145.81,145.8,0.03]
[1745903802329,82.9,145.81,145.8,0.03]
[1745903810605,13.68,145.84,145.8,7.45370242]
[1745903810944,13.68,145.84,145.82,7.42370242]
[1745903812723,13.68,145.84,145.8,0.03]
[1745903812914,13.68,145.84,145.81,7.42370242]
[1745903813534,13.68,145.84,145.81,11.59561519]
[1745903814333,13.68,145.84,145.82,11.59561519]
[1745903814528,82.9,145.85,145.83,11.59561519]
[1745903815028,82.9,145.85,145.82,11.59561519]
[1745903815715,82.9,145.85,145.84,11.59561519]
[1745903815913,82.9,145.89,145.84,11.59561519]
[1745903816138,82.9,145.89,145.87,11.59561519]
[1745903816335,82.9,145.89,145.88,11.59561519]
[1745903816554,24.16210341,145.9,145.88,11.59561519]
[1745903816723,10.48210341,145.9,145.89,11.59561519]
[1745903818414,0.063,145.9,145.89,11.59561519]
[1745903823747,0.063,145.9,145.89,17.76464665]
[1745903823949,0.063,145.91,145.89,17.76464665]
[1745903824133,0.063,145.91,145.9,11.59561519]
[1745903831939,0.063,145.91,145.88,11.59561519]
[1745903831940,0.063,145.91,145.89,11.59561519]
[1745903832144,0.063,145.91,145.87,94.58]
[1745903832145,0.063,145.91,145.9,11.59561519]
[1745903833165,0.063,145.91,145.9,19.39952382]
[1745903833373,0.063,145.92,145.9,19.39952382]
[1745903833669,0.063,145.92,145.91,11.59561519]
[1745903834874,0.063,145.93,145.92,6.16776315]
[1745903835059,0.063,145.93,145.92,17.76337834]
[1745903836076,0.063,145.93,145.92,128.90864239]
[1745903837177,0.063,145.93,145.92,117.3130272]
[1745903837579,0.063,145.93,145.92,92.49561519]
[1745903838072,0.063,145.93,145.88,80.9]
[1745903838275,0.063,145.93,145.9,11.59561519]
[1745903838580,11.65861519,145.93,145.89,11.59561519]
[1745903838770,11.65861519,145.93,145.9,11.59561519]
[1745903838975,0.063,145.93,145.9,11.59561519]
[1745903839550,11.65861519,145.93,145.89,11.59561519]
[1745903840065,0.063,145.93,145.9,11.59561519]
[1745903842877,0.063,145.93,145.92,11.59561519]
[1745903844260,0.063,145.94,145.92,49.52904239]
[1745903844460,0.063,145.94,145.93,24.56121145]
[1745903844791,0.063,145.96,145.93,105.46121145]
[1745903844963,0.063,145.96,145.94,11.59561519]
[1745903845562,0.063,145.96,145.93,11.59561519]
[1745903846455,11.65861519,145.96,145.9,13.76]
[1745903846685,0.063,145.96,145.93,11.59561519]
[1745903847992,0.063,145.96,145.94,11.59561519]
[1745903848989,0.063,145.96,145.93,11.59561519]
[1745903850179,0.063,145.96,145.94,11.59561519]
[1745903853890,0.063,145.96,145.94,17.7625331]
[1745903854101,0.063,145.96,145.91,6.16785799]
[1745903854272,0.063,145.96,145.94,11.59561519]
[1745903859181,0.063,145.96,145.94,29.35814829]
[1745903859583,0.063,145.96,145.94,48.00779715]
[1745903859779,0.063,145.96,145.94,130.27766709]
[1745903860885,0.063,145.96,145.94,118.6820519]
[1745903861077,0.063,145.96,145.94,93.86548513]
[1745903861275,0.063,145.96,145.94,131.94006709]
[1745903862100,0.063,145.98,145.95,18.64964886]
[1745903862301,0.063,145.98,145.97,30.24526405]
[1745903863300,0.063,145.98,145.97,117.31091452]
[1745903864601,0.063,145.98,145.97,92.49561519]
[1745903865903,0.063,145.98,145.97,98.66126566]
[1745903866279,0.063,145.98,145.97,117.31091452]
[1745903868775,0.063,145.99,145.97,117.31091452]
[1745903868981,0.063,145.99,145.98,31.61467655]
[1745903869186,0.063,146.0,145.99,11.59561519]
[1745903869482,0.063,146.0,145.99,122.74087924]
[1745903869688,0.063,146.01,146.0,18.64964886]
[1745903869990,0.063,146.01,146.0,56.95012316]
[1745903870598,0.063,146.01,146.0,63.11450672]
[1745903873205,0.063,146.04,146.0,63.11450672]
[1745903873405,0.063,146.04,146.01,41.84087924]
[1745903873899,0.063,146.07,146.03,30.24526405]
[1745903874204,0.063,146.07,146.06,11.59561519]
[1745903880329,0.063,146.07,146.03,80.9]
[1745903880502,0.063,146.07,146.05,11.59561519]
[1745903880825,0.063,146.07,146.06,11.59561519]
[1745903886926,0.063,146.07,146.05,11.59561519]